bitfinex/quotes_SOLUSD_20241202
["timestamp","ask_amount","ask_price","bid_price","bid_amount"]
[1733100150363,20.0,236.58,236.4,5.83987113]
[1733100150364,1.0542701,236.57,236.4,28.53166982]
[1733100150571,23.776884,236.56,236.4,0.77504973]
[1733100150749,20.0,236.51,236.4,13.46504973]
[1733100151063,1.054507,236.5,236.4,13.46504973]
[1733100151567,7.408407,236.5,236.4,13.46504973]
[1733100151756,7.408407,236.5,236.4,12.69]
[1733100152650,7.408407,236.5,236.37,0.77526803]
[1733100153565,7.408407,236.5,236.36,70.0]
[1733100153939,7.408407,236.5,236.36,70.77550744]
[1733100154145,7.408407,236.5,236.38,11.61213682]
[1733100154362,7.408407,236.5,236.39,0.77524614]
[1733100154677,6.3539,236.5,236.39,70.77524614]
[1733100155051,7.4084363,236.5,236.39,70.77524614]
[1733100155455,6.3539,236.5,236.39,70.77524614]
[1733100155964,1.05454428,236.49,236.39,20.77524614]
[1733100156267,7.40851532,236.5,236.39,90.77524614]
[1733100156474,7.40851532,236.5,236.39,90.0]
[1733100156650,7.40845137,236.5,236.39,90.0]
[1733100159571,7.40845137,236.5,236.35,11.61213682]
[1733100159760,7.40845137,236.5,236.37,90.0]
[1733100159960,7.40845137,236.5,236.38,20.0]
[1733100160166,7.40845137,236.5,236.38,20.77544079]
[1733100161961,23.776884,236.49,236.34,70.0]
[1733100162163,23.776884,236.46,236.31,0.77586227]
[1733100162370,1.05497804,236.45,236.31,0.77586227]
[1733100162883,20.0,236.41,236.25,22.19403682]
[1733100163055,6.3613,236.39,236.25,22.970429]
[1733100163253,1.05509173,236.38,236.25,22.970429]
[1733100163466,7.41639108,236.39,236.27,70.0]
[1733100163670,7.41639108,236.39,236.27,70.77625823]
[1733100165368,7.41639108,236.39,236.27,20.77625823]
[1733100165551,39.085684,236.38,236.24,70.0]
[1733100165754,1.05530113,236.37,236.24,70.0]
[1733100166067,1.05530113,236.37,236.21,81.36051338]
[1733100166565,1.05530113,236.37,236.21,94.04051338]
[1733100166772,1.05530113,236.37,236.21,93.2638]
[1733100166961,1.05530113,236.37,236.24,20.0]
[1733100168254,23.776884,236.36,236.18,81.61213682]
[1733100168477,20.0,236.31,236.17,23.2654]
[1733100168683,1.05553926,236.3,236.17,23.2654]
[1733100168867,6.2464,236.29,236.17,23.2654]
[1733100169068,1.05553743,236.28,236.19,70.0]
[1733100169265,6.2464,236.29,236.19,70.0]
[1733100169472,1.05546863,236.28,236.18,0.77718597]
[1733100170069,16.2585,236.27,236.18,0.77718597]
[1733100172299,16.2585,236.27,236.19,81.61213682]
[1733100172580,6.2464,236.29,236.22,81.61213682]
[1733100172889,6.2464,236.29,236.23,0.77670656]
[1733100174684,6.2464,236.29,236.23,13.45670656]
[1733100179492,6.2464,236.29,236.19,22.19673682]
[1733100179493,6.2464,236.29,236.19,12.68]
[1733100179693,6.2464,236.29,236.19,13.45704775]
[1733100180595,1.0554242,236.28,236.19,13.45704775]
[1733100180765,6.2464,236.29,236.19,13.45704775]
[1733100180960,1.05551173,236.28,236.19,13.45704775]
[1733100181165,1.05551173,236.28,236.19,20.77704775]
[1733100181373,6.2464,236.29,236.2,12.68]
[1733100182293,6.2464,236.29,236.19,13.45704775]
[1733100184277,1.05551193,236.28,236.16,13.45713498]
[1733100185066,1.05551193,236.28,236.16,12.68]
[1733100185266,1.05551193,236.28,236.12,13.45758031]
[1733100185267,16.6491,236.26,236.12,13.45758031]
[1733100185493,1.05581599,236.25,236.12,13.45758031]
[1733100186094,20.0,236.23,236.12,13.45758031]
[1733100186303,20.0,236.21,236.09,12.68]
[1733100186493,1.0559661,236.2,236.09,12.68]
[1733100186676,1.05598968,236.22,236.09,12.68]
[1733100187181,0.17,236.19,236.1,0.77802356]
[1733100187384,4.933e-05,236.19,236.1,0.77802356]
[1733100189173,4.933e-05,236.19,236.12,12.68]
[1733100189373,4.933e-05,236.19,236.15,12.68]
[1733100189704,4.933e-05,236.19,236.15,13.45747354]
[1733100189870,6.0986,236.23,236.15,13.45747354]
[1733100192192,16.6491,236.26,236.18,12.68]
[1733100192381,16.6491,236.26,236.19,0.77707932]
[1733100192998,16.6491,236.26,236.18,12.68]
[1733100193181,16.6491,236.26,236.19,12.68]
[1733100194800,16.6491,236.26,236.17,20.0]
[1733100194977,16.6491,236.26,236.18,12.68]
[1733100195296,16.6491,236.26,236.15,13.45727234]
[1733100195485,16.6491,236.26,236.18,12.68]
[1733100195688,16.6491,236.26,236.18,13.45720491]
[1733100196107,16.6491,236.26,236.18,12.68]
[1733100196402,16.6491,236.26,236.15,12.68]
[1733100196700,16.6491,236.26,236.16,0.77725794]
[1733100197195,16.6491,236.26,236.18,12.68]
[1733100197399,16.6491,236.26,236.18,13.45720257]
[1733100198887,6.0986,236.29,236.22,12.68]
[1733100199091,6.0986,236.29,236.23,0.77677363]
[1733100199294,6.0986,236.29,236.2,12.68]
[1733100199490,6.0986,236.29,236.18,70.0]
[1733100199700,1.05548564,236.28,236.18,20.0]
[1733100199911,1.05548564,236.28,236.15,20.0]
[1733100200407,1.05548564,236.28,236.13,13.4575042]
[1733100200909,39.388984,236.27,236.13,0.7775042]
[1733100201110,23.776884,236.25,236.13,0.7775042]
[1733100201402,1.05581265,236.26,236.13,0.7775042]
[1733100201403,15.6121,236.27,236.16,12.68]
[1733100201608,1.05561045,236.26,236.16,13.45733201]
[1733100202205,1.05561045,236.26,236.13,0.7774581]
[1733100202396,1.05561045,236.26,236.15,20.0]
[1733100202602,15.0318,236.33,236.28,12.68]
[1733100202787,15.0318,236.33,236.28,13.45630498]
[1733100202984,6.0199,236.36,236.28,13.45630498]
[1733100203900,6.0199,236.36,236.28,0.77630498]
[1733100204082,6.0199,236.36,236.26,0.77636702]
[1733100204282,6.0199,236.36,236.28,12.68]
[1733100204603,6.0199,236.36,236.29,0.77626443]
[1733100205689,6.0199,236.36,236.28,12.68]
[1733100206205,1.05511584,236.35,236.25,12.68]
[1733100206389,1.05511584,236.35,236.26,0.60705359]
[1733100207113,1.05511584,236.35,236.26,14.06369104]
[1733100207278,6.0199,236.36,236.27,0.6070279]
[1733100207484,1.05517289,236.35,236.27,0.6070279]
[1733100207912,6.0199,236.36,236.27,0.6070279]
[1733100208411,6.0199,236.36,236.28,13.45650676]
[1733100208594,6.0199,236.36,236.29,0.60697652]
[1733100209116,15.0318,236.39,236.3,13.45627042]
[1733100209301,15.0318,236.39,236.31,0.60692515]
[1733100209506,15.0318,236.39,236.32,0.77593616]
[1733100209693,15.0318,236.39,236.33,0.60687378]
[1733100210415,1.05498414,236.38,236.33,0.60687378]
[1733100210715,23.776884,236.37,236.33,0.60687378]
[1733100210889,1.05520516,236.36,236.33,0.60687378]
[1733100212718,15.0318,236.39,236.33,0.60687378]
[1733100212899,1.05513011,236.38,236.33,0.60687378]
[1733100213714,23.776884,236.37,236.33,0.60687378]
[1733100213919,1.05530714,236.36,236.33,0.60687378]
[1733100214409,23.776884,236.35,236.33,0.60687378]
[1733100214598,1.05537766,236.34,236.33,0.60687378]
[1733100214915,24.83226166,236.34,236.33,0.60687378]
[1733100215126,24.83226166,236.34,236.33,0.90763365]
[1733100215620,46.51346166,236.34,236.18,12.68]
[1733100215823,23.776884,236.33,236.14,12.68]
[1733100216126,23.776884,236.31,236.17,12.68]
[1733100216421,1.05555268,236.3,236.18,0.77721648]
[1733100216600,1.05555268,236.3,236.13,70.0]
[1733100216801,23.776884,236.29,236.14,13.45754878]
[1733100217024,6.3389,236.25,236.1,85.9365]
[1733100217229,6.3389,236.25,236.1,0.77780683]
[1733100217230,1.05584786,236.24,236.1,0.77780683]
[1733100217531,23.776884,236.23,236.11,0.56995009]
[1733100217698,1.05598604,236.22,236.11,0.56995009]
[1733100218620,23.776884,236.23,236.11,0.56995009]
[1733100218621,1.05592349,236.24,236.12,0.7779581]
[1733100218802,1.05592349,236.24,236.13,0.56990182]
[1733100219002,1.05592349,236.24,236.14,0.77753654]
[1733100219222,7.39461818,236.25,236.14,0.77753654]
[1733100219420,1.05570429,236.24,236.14,0.77753654]
[1733100221523,1.05570429,236.24,236.13,0.56990182]
[1733100221822,1.05570429,236.24,236.14,0.77770766]
[1733100222406,1.05570429,236.24,236.13,0.56990182]
[1733100223224,1.05570429,236.24,236.13,20.56990182]
[1733100223604,1.05570429,236.24,236.13,0.56990182]
[1733100224225,6.3389,236.25,236.14,12.38987497]
[1733100224411,6.3389,236.25,236.15,11.61213682]
[1733100224733,6.3389,236.25,236.17,20.0]
[1733100225809,6.3389,236.25,236.16,20.0]
[1733100226010,6.3389,236.25,236.16,20.77749003]
[1733100226334,1.05565494,236.24,236.16,20.77749003]
[1733100226528,1.05565494,236.24,236.16,0.77749003]
[1733100226707,6.3389,236.25,236.13,82.18203864]
[1733100226708,6.3389,236.25,236.14,0.7774844]
[1733100227032,6.3389,236.25,236.15,11.61213682]
[1733100227236,6.3389,236.25,236.16,0.77739599]
[1733100227915,1.05567036,236.24,236.16,0.77739599]
[1733100228117,6.3389,236.25,236.14,0.77755389]
[1733100229036,1.05566308,236.24,236.14,0.77755389]
[1733100229332,7.3946197,236.25,236.14,0.77755389]
[1733100229532,1.05569034,236.24,236.14,0.77755389]
[1733100230029,1.05569034,236.24,236.14,13.45755389]
[1733100231132,1.05569034,236.24,236.13,13.24990182]
[1733100231606,1.05569034,236.24,236.13,0.56990182]
[1733100235033,23.776884,236.23,236.13,0.56990182]
[1733100235242,16.3335,236.21,236.13,0.56990182]
[1733100235447,1.05604031,236.2,236.13,0.56990182]
[1733100236648,20.0,236.18,236.13,0.56990182]
[1733100236819,1.05615404,236.17,236.13,0.56990182]
[1733100237145,6.3021,236.16,236.13,0.56990182]
[1733100237324,16.2369,236.14,236.13,0.56990182]
[1733100238113,23.776884,236.13,235.97,12.68]
[1733100238414,1.05650099,236.12,235.98,0.7791131]
[1733100238613,1.05650099,236.12,235.96,12.68]
[1733100239939,1.05650099,236.12,235.98,20.0]
[1733100241139,20.0,236.08,235.95,0.77898972]
[1733100241352,1.05663442,236.07,235.96,0.43823455]
[1733100241843,15.3854,236.06,235.96,0.43823455]
[1733100242045,1.05681913,236.05,235.96,0.43823455]
[1733100242759,6.0507,236.04,235.96,0.43823455]
[1733100242922,1.05684461,236.03,235.96,0.43823455]
[1733100243547,20.0,236.01,235.96,0.43823455]
[1733100243759,1.05705996,236.0,235.96,0.43823455]
[1733100244252,20.0,235.97,235.96,0.43823455]
[1733100244430,21.05715224,235.97,235.96,0.43823455]
[1733100244620,1.05715224,235.97,235.96,0.43823455]
[1733100244836,15.7998,235.99,235.96,0.43823455]
[1733100245048,1.05683989,235.98,235.9,0.4912235]
[1733100245434,1.05690589,235.98,235.9,0.4912235]
[1733100245633,1.05690589,235.98,235.88,13.4510144]
[1733100246156,1.05690589,235.98,235.84,12.68]
[1733100246369,20.0,235.96,235.81,0.78040429]
[1733100246545,1.0571141,235.95,235.81,0.78040429]
[1733100247056,20.0,235.96,235.81,0.78040429]
[1733100247268,20.0,235.94,235.8,12.68]
[1733100247446,1.05729207,235.93,235.8,12.68]
[1733100247968,1.05729207,235.93,235.74,70.0]
[1733100248267,6.1099,235.88,235.75,12.68]
[1733100248444,1.05754043,235.87,235.76,0.39427318]
[1733100248649,1.05754043,235.87,235.77,0.78121665]
[1733100248957,7.16726978,235.88,235.77,0.78121665]
[1733100249360,7.16726978,235.88,235.76,0.39427318]
[1733100250537,7.16726978,235.88,235.78,36.456884]
[1733100250538,6.1099,235.88,235.78,36.456884]
[1733100250739,15.5262,235.92,235.8,106.456884]
[1733100250958,15.5262,235.92,235.82,36.456884]
[1733100251271,15.5262,235.92,235.81,1.17462853]
[1733100251272,15.5262,235.92,235.84,36.456884]
[1733100251481,15.5262,235.92,235.85,0.78016449]
[1733100251757,6.5956,235.94,235.87,12.68]
[1733100251969,22.4524,235.99,235.89,36.456884]
[1733100252271,1.05685268,235.98,235.87,23.776884]
[1733100252565,22.4524,235.99,235.89,36.456884]
[1733100253465,6.1378,235.99,235.92,12.68]
[1733100253671,16.3717,236.04,235.93,36.456884]
[1733100253860,17.42834373,236.04,235.93,12.68]
[1733100254164,17.42834373,236.04,235.88,20.0]
[1733100254345,17.42834373,236.04,235.89,20.0]
[1733100254548,17.42834373,236.04,235.86,24.5568519]
[1733100254962,17.42834373,236.04,235.86,36.19001497]
[1733100255162,17.42834373,236.04,235.91,20.0]
[1733100255347,17.42834373,236.04,235.92,0.77946232]
[1733100256063,16.3717,236.04,235.95,23.776884]
[1733100256300,1.056588,236.03,235.91,70.0]
[1733100256562,1.056588,236.03,235.92,94.55644127]
[1733100256868,16.3717,236.04,235.92,93.776884]
[1733100257169,16.3717,236.04,235.93,0.77937246]
[1733100257369,1.05659508,236.03,235.93,0.77937246]
[1733100257567,16.3717,236.04,235.93,0.77937246]
[1733100257756,16.3717,236.04,235.94,23.776884]
[1733100257952,16.3717,236.04,235.95,0.77914212]
[1733100258341,24.83345912,236.03,235.84,70.0]
[1733100258548,24.83345912,236.03,235.85,0.78013324]
[1733100258863,24.83345912,236.03,235.82,0.78015002]
[1733100259072,20.0,236.0,235.82,0.78015002]
[1733100259371,6.1934,235.98,235.82,0.78015002]
[1733100259553,1.05715435,235.97,235.82,0.78015002]
[1733100259965,6.1934,235.98,235.86,11.63316307]
[1733100260177,6.1934,235.98,235.87,0.77990535]
[1733100261374,6.1934,235.98,235.88,20.0]
[1733100261547,6.1934,235.98,235.89,0.77983112]
[1733100262259,1.05692659,235.97,235.87,20.0]
[1733100262462,6.1934,235.98,235.88,0.77998618]
[1733100262643,6.1934,235.98,235.89,0.38519199]
[1733100262976,6.1934,235.98,235.9,0.77989467]
[1733100263147,6.1934,235.98,235.89,24.16207599]
[1733100263472,6.1934,235.98,235.9,0.2989658]
[1733100263672,6.1934,235.98,235.9,1.07871353]
[1733100263876,2.07589505,235.98,235.9,0.2989658]
[1733100265578,1.05690592,236.03,235.9,0.2989658]
[1733100265579,1.05690592,236.03,235.91,105.41004707]
[1733100265761,16.3717,236.04,235.95,20.0]
[1733100266070,16.3717,236.04,235.95,20.77929916]
[1733100266964,17.42833613,236.04,235.9,0.2989658]
[1733100268474,17.42833613,236.04,235.91,90.0]
[1733100268659,17.42833613,236.04,235.92,0.77948407]
[1733100268860,17.42833613,236.04,235.91,90.0]
[1733100269477,17.42833613,236.04,235.92,0.77958294]
[1733100269777,17.42833613,236.04,235.92,13.45958294]
[1733100270085,16.3717,236.04,235.95,36.456884]
[1733100270265,16.3717,236.04,235.96,0.77920474]
[1733100270672,16.3717,236.04,235.97,36.456884]
[1733100270855,22.1688,236.16,235.99,36.456884]
[1733100271178,1.05634002,236.15,236.0,0.77879116]
[1733100271974,1.05634002,236.15,236.02,12.68]
[1733100272157,1.05634002,236.15,236.03,0.77837929]
[1733100272875,1.05634002,236.15,236.02,13.45847209]
[1733100273065,1.05634002,236.15,236.02,0.77847209]
[1733100273262,1.05634002,236.15,236.03,0.09386037]
[1733100273467,1.05634002,236.15,236.03,12.77386037]
[1733100273682,1.05634002,236.15,236.04,0.86051077]
[1733100274057,22.1688,236.16,236.05,0.06957634]
[1733100274258,22.1688,236.16,236.06,20.0]
[1733100274564,22.1688,236.16,236.06,20.77826019]
[1733100274762,1.05609625,236.15,236.06,20.77826019]
[1733100274982,22.1688,236.16,236.06,20.0]
[1733100275285,22.1688,236.16,236.06,20.77828288]
[1733100276252,1.05610676,236.15,236.06,20.77828288]
[1733100276455,22.1688,236.16,236.06,20.77828288]
[1733100277669,22.1688,236.16,236.06,20.0]
[1733100277670,1.05610806,236.15,236.06,20.0]
[1733100277866,22.1688,236.16,236.06,20.0]
[1733100278272,22.1688,236.16,236.05,0.77834957]
[1733100278273,1.05608493,236.15,236.05,0.77834957]
[1733100278593,1.05608493,236.15,236.0,12.68]
[1733100278886,1.05608493,236.15,236.01,0.77862414]
[1733100285986,20.0,236.11,236.0,12.68]
[1733100286158,1.05641377,236.1,236.0,12.68]
[1733100287570,21.05638675,236.13,236.01,0.7788846]
[1733100291312,15.2017,236.12,236.01,0.7788846]
[1733100292105,15.2017,236.12,236.04,12.68]
[1733100292404,15.2017,236.12,236.05,0.77833889]
[1733100292899,15.1472,236.18,236.11,12.68]
[1733100293094,15.1472,236.18,236.12,0.77776145]
[1733100293475,15.1472,236.18,236.09,0.77774441]
[1733100293682,15.1472,236.18,236.08,12.68]
[1733100293881,15.1472,236.18,236.09,0.77807486]
[1733100294101,15.1472,236.18,236.08,12.68]
[1733100294394,15.1472,236.18,236.08,32.68]
[1733100295106,15.1472,236.18,236.09,0.77803194]
[1733100295780,1.0559579,236.17,236.05,13.45802691]
[1733100296485,15.1472,236.18,236.05,13.45802691]
[1733100297182,1.05601631,236.17,236.05,13.45802691]
[1733100297382,1.05601631,236.17,236.05,0.77802691]
[1733100297703,1.05601631,236.17,236.04,20.0]
[1733100297905,6.089,236.16,236.05,0.77852609]
[1733100298077,7.1451082,236.16,236.05,0.77852609]
[1733100299307,6.089,236.16,236.05,0.77852609]
[1733100299803,15.5599,236.23,236.09,12.68]
[1733100299988,1.05587508,236.22,236.1,0.77786128]
[1733100301206,20.0,236.2,236.1,0.77786128]
[1733100301507,1.05587508,236.22,236.1,0.77786128]
[1733100302706,15.5599,236.23,236.13,12.68]
[1733100302876,15.5599,236.23,236.14,0.77751854]
[1733100303289,1.05575252,236.22,236.13,12.68]
[1733100303487,1.05575252,236.22,236.12,0.77761615]
[1733100303696,1.05575252,236.22,236.1,0.77776998]
[1733100304211,15.5599,236.23,236.1,0.77776998]
[1733100304380,1.05585582,236.22,236.1,0.77776998]
[1733100304794,15.5599,236.23,236.1,0.77776998]
[1733100305401,1.0557635,236.22,236.1,0.77776998]
[1733100306625,1.0557635,236.22,236.08,12.68]
[1733100306799,20.0,236.2,236.08,12.68]
[1733100306993,1.05599694,236.19,236.08,12.68]
[1733100307713,21.9763,236.18,236.03,12.68]
[1733100307921,1.05621074,236.17,236.03,12.68]
[1733100308296,1.05621074,236.17,236.06,12.68]
[1733100308505,1.05603396,236.17,236.07,0.77817904]
[1733100308802,1.05603396,236.17,236.06,12.68]
[1733100309007,20.0,236.15,236.06,12.68]
[1733100309210,1.05617479,236.14,236.0,13.45846069]
[1733100311218,1.05617479,236.14,236.0,0.77846069]
[1733100311411,23.776884,236.13,236.0,0.77846069]
[1733100311597,1.05636946,236.12,236.0,0.77846069]
[1733100312221,15.5325,236.11,236.0,0.77846069]
[1733100312398,1.0563502,236.1,236.0,0.77846069]
[1733100313621,6.6621,236.09,235.94,13.45920721]
[1733100313822,23.776884,236.07,235.9,70.0]
[1733100314121,6.6621,236.04,235.89,16.956234]
[1733100314299,1.05680928,236.03,235.89,16.956234]
[1733100314617,1.05680928,236.03,235.88,0.77972967]
[1733100315426,20.0,235.99,235.85,0.77977727]
[1733100315600,16.53989012,235.98,235.85,0.77977727]
[1733100315795,6.168,235.96,235.81,70.0]
[1733100315997,1.05716078,235.95,235.82,0.78043268]
[1733100316196,20.0,235.93,235.82,0.78043268]
[1733100316505,1.05718908,235.92,235.79,0.78048928]
[1733100317392,15.3622,235.91,235.79,0.78048928]
[1733100317595,1.05728558,235.9,235.79,0.78048928]
[1733100318532,6.2512,235.89,235.72,12.68]
[1733100318821,1.05745946,235.88,235.74,70.0]
[1733100319219,1.05745946,235.88,235.75,0.78106706]
[1733100320101,20.0,235.86,235.72,0.78108441]
[1733100320408,20.0,235.86,235.7,0.78127832]
[1733100320409,16.1841,235.84,235.7,0.78127832]
[1733100320603,1.0577172,235.83,235.67,1.27276901]
[1733100320803,6.6642,235.8,235.67,1.27276901]
[1733100321025,1.05780076,235.79,235.67,0.4912235]
[1733100321211,15.1003,235.76,235.67,0.4912235]
[1733100321413,1.05807943,235.75,235.67,0.4912235]
[1733100325605,15.1003,235.76,235.67,0.4912235]
[1733100325804,15.1003,235.76,235.68,70.78157437]
[1733100326710,15.1003,235.76,235.68,0.78157437]
[1733100327017,1.05778169,235.75,235.67,0.4912235]
[1733100329723,0.70942023,235.75,235.67,0.4912235]
[1733100329926,15.1003,235.76,235.67,0.4912235]
[1733100330234,0.98552743,235.75,235.67,0.4912235]
[1733100332529,15.1003,235.76,235.67,0.4912235]
[1733100332719,15.1003,235.76,235.68,0.84622088]
[1733100333329,20.0,235.73,235.68,0.84622088]
[1733100334041,20.0,235.73,235.67,0.4912235]
[1733100335808,20.0,235.73,235.68,0.84629552]
[1733100336744,15.8477,235.83,235.7,12.68]
[1733100336933,15.8477,235.83,235.71,0.84598421]
[1733100337235,15.8477,235.83,235.73,12.68]
[1733100337432,15.8477,235.83,235.76,12.68]
[1733100337737,6.595,235.85,235.77,0.84589336]
[1733100337932,15.4715,235.88,235.77,0.84589336]
[1733100338634,15.4715,235.88,235.79,12.68]
[1733100338857,15.4715,235.88,235.8,0.84576947]
[1733100339019,0.98552743,235.87,235.79,12.68]
[1733100339608,15.4715,235.88,235.76,13.52583024]
[1733100340022,0.98552743,235.87,235.75,12.68]
[1733100340840,20.0,235.85,235.75,0.84600711]
[1733100342225,0.98552743,235.84,235.75,0.84600711]
[1733100342425,23.776884,235.83,235.68,12.68]
[1733100342645,6.0911,235.79,235.69,0.84621483]
[1733100342950,35.0603,235.76,235.68,12.68]
[1733100343240,35.0603,235.76,235.67,0.4912235]
[1733100343241,35.0603,235.76,235.67,1.33749712]
[1733100343438,35.0603,235.76,235.67,0.4912235]
[1733100347351,35.0603,235.76,235.68,12.68]
[1733100347550,15.0603,235.76,235.69,0.84613012]
[1733100347723,6.0911,235.79,235.71,12.68]
[1733100347923,6.0911,235.79,235.72,0.84603869]
[1733100348930,5.78719358,235.79,235.72,0.84603869]
[1733100350249,20.0,235.76,235.69,12.68]
[1733100350440,10.63477714,235.76,235.69,12.68]
[1733100350643,0.98552743,235.78,235.69,12.68]
[1733100351138,0.98552743,235.78,235.68,12.68]
[1733100352839,20.0,235.76,235.68,12.68]
[1733100354447,0.98552743,235.78,235.68,12.68]
[1733100356643,20.0,235.76,235.67,0.4912235]
[1733100356846,0.98552743,235.75,235.67,0.4912235]
[1733100358468,5.78719358,235.79,235.67,13.1712235]
[1733100358637,5.78719358,235.79,235.68,0.84616003]
[1733100359256,15.3895,235.82,235.69,82.68]
[1733100359558,15.3895,235.82,235.7,0.84604701]
[1733100360246,0.98552743,235.81,235.7,0.84604701]
[1733100360445,15.3895,235.82,235.7,0.84604701]
[1733100360963,0.5672325,235.81,235.7,0.84604701]
[1733100362850,0.5672325,235.81,235.67,0.4912235]
[1733100363158,23.776884,235.76,235.67,0.4912235]
[1733100363359,0.5672325,235.75,235.67,0.4912235]
[1733100364059,15.3895,235.82,235.68,12.68]
[1733100364256,0.5672325,235.81,235.69,0.84612532]
[1733100365062,15.3895,235.82,235.71,12.68]
[1733100365276,15.3895,235.82,235.71,13.52607491]
[1733100366466,0.5672325,235.81,235.71,13.52607491]
[1733100366673,0.5672325,235.81,235.71,0.84607491]
[1733100367543,0.5672325,235.81,235.69,0.84611465]
[1733100367868,20.0,235.79,235.67,0.4912235]
[1733100368060,0.5672325,235.78,235.67,0.4912235]
[1733100370188,0.5672325,235.81,235.68,0.84629435]
[1733100370345,15.3895,235.82,235.7,12.68]
[1733100370656,15.3895,235.82,235.71,0.84608144]
[1733100371450,0.5672325,235.81,235.71,13.52608144]
[1733100371651,15.3895,235.82,235.71,13.52608144]
[1733100372678,15.3895,235.82,235.72,12.68]
[1733100372879,0.5672325,235.81,235.67,0.4912235]
[1733100373172,20.0,235.75,235.67,0.4912235]
[1733100373371,0.5672325,235.74,235.67,0.4912235]
[1733100377584,15.1209,235.72,235.67,0.4912235]
[1733100377761,0.5672325,235.71,235.67,0.4912235]
[1733100378662,20.0,235.68,235.67,0.4912235]
[1733100379178,43.776884,235.68,235.67,0.4912235]
[1733100380455,44.3441165,235.68,235.67,0.4912235]
[1733100381477,20.0,235.68,235.67,0.4912235]
[1733100381686,20.0,235.69,235.67,0.4912235]
[1733100382272,0.5672325,235.68,235.67,0.4912235]
[1733100382478,20.0,235.69,235.67,0.4912235]
[1733100383485,0.5672325,235.68,235.67,0.4912235]
[1733100383695,0.5672325,235.71,235.67,0.4912235]
[1733100385291,20.0,235.68,235.67,0.4912235]
[1733100385462,20.5672325,235.68,235.67,0.4912235]
[1733100386493,20.5672325,235.69,235.67,0.4912235]
[1733100386679,0.5672325,235.68,235.67,0.4912235]
[1733100387869,5.5672325,235.68,235.67,2.35e-05]
[1733100388076,20.0,235.62,235.45,0.84673273]
[1733100388262,24.3441165,235.61,235.45,0.84673273]
[1733100388589,23.776884,235.6,235.45,0.84673273]
[1733100388882,0.5672325,235.59,235.45,0.84673273]
[1733100389263,20.0,235.57,235.44,15.9922]
[1733100389582,0.5672325,235.56,235.44,16.83933737]
[1733100390084,0.5672325,235.56,235.44,29.51933737]
[1733100391264,0.5672325,235.59,235.47,12.68]
[1733100391584,0.5672325,235.61,235.48,0.84692578]
[1733100392390,0.5672325,235.61,235.49,12.68]
[1733100392591,20.0,235.64,235.5,0.84685581]
[1733100392766,0.5672325,235.63,235.5,0.84685581]
[1733100396770,20.0,235.64,235.51,10.6152]
[1733100396981,6.1532,235.72,235.54,12.68]
[1733100397166,0.5672325,235.71,235.55,0.84663689]
[1733100398269,20.0,235.69,235.55,0.84663689]
[1733100398587,0.5672325,235.68,235.55,0.84663689]
[1733100400062,0.5672325,235.68,235.56,23.293]
[1733100400380,0.5672325,235.69,235.57,0.84658254]
[1733100401496,0.5672325,235.69,235.58,34.388984]
[1733100401665,0.5672325,235.77,235.59,83.52645276]
[1733100402579,0.5672325,235.77,235.56,12.68]
[1733100402766,20.0,235.75,235.56,12.68]
[1733100402962,20.0,235.7,235.56,12.68]
[1733100403210,0.5672325,235.69,235.56,12.68]
[1733100403870,23.776884,235.73,235.55,70.84661533]
[1733100403871,0.5672325,235.72,235.59,20.0]
[1733100404073,0.5672325,235.72,235.59,20.84655982]
[1733100404994,0.5672325,235.72,235.59,20.0]
[1733100405296,0.5672325,235.72,235.58,12.68]
[1733100406301,0.5672325,235.72,235.58,13.52658656]
[1733100407594,20.0,235.7,235.58,13.52658656]
[1733100407795,0.5672325,235.69,235.58,13.52658656]
[1733100408002,0.5672325,235.69,235.56,12.68]
[1733100409477,0.5672325,235.69,235.54,0.84665997]
[1733100409684,20.0,235.65,235.53,16.0725]
[1733100409899,0.14924505,235.6,235.53,16.0725]
[1733100410493,0.5672325,235.64,235.53,16.0725]
[1733100411619,0.5672325,235.64,235.54,0.84680449]
[1733100412602,0.5672325,235.64,235.54,0.84681183]
[1733100414507,0.5672325,235.64,235.53,16.0725]
[1733100415792,20.5672325,235.64,235.52,6.2428]